[Event "CCT Final-RR 2024"]
[Site "Oslo"]
[Date "2024.12.19"]
[Round "7"]
[White "Nepomniachtchi, Ian"]
[Black "Aronian, Levon"]
[Result "1-0"]
[ECO "C55"]
[WhiteElo "2755"]
[BlackElo "2747"]
[Annotator "TA"]
[PlyCount "84"]
[EventDate "2024.12.11"]
[EventType "tourn"]
[EventCountry "NOR"]
[SourceTitle "playchess.com"]
[Source "ChessBase"]
[SourceQuality "1"]
[TimeControl "600+2"]

{[%evp 24,84,0,0,0,0,41,35,28,20,79,70,115,98,109,101,105,95,103,94,97,42,48,24,7,16,170,0,38,35,133,125,349,315,358,345,397,355,372,347,552,545,513,353,679,679,679,679,674,0,704,695,706,686,898,898,1652,1650,1555,1471,2041,1934,1428]} 1. e4 {[%emt 0:00:02]} e5 {[%emt 0:00:01]} 2. Nf3 {[%emt 0:00:02]} Nc6 {[%emt 0:00:01]} 3. Bc4 {[%emt 0:00:01]} Nf6 {[%emt 0:00:02]} 4. d3 {[%emt 0:00:01]} Be7 {[%emt 0:00:01]} 5. O-O {[%emt 0:00:04]} O-O {[%emt 0:00:02]} 6. Nbd2 {[%emt 0:00:01]} d5 {[%emt 0:00:03] C55: Two Knights: 4 d3, 4 d4 exd4 5 e5 and Max Lange Attack.} 7. exd5 {[%emt 0:00:02]} Nxd5 {[%emt 0:00:02]} 8. h3 {[%emt 0:00:02]} Nb6 {[%emt 0:00:20]} 9. Bb3 {[%emt 0:00:01]} Kh8 $146 {[%emt 0:00:01]} ({Predecessor:} 9... Bf5 10. c3 Bxd3 11. Re1 Qd6 12. Nf1 e4 13. N3d2 Qe5 14. Nf3 Qh5 15. N3h2 Rfd8 16. Qxh5 {½-½ Woznica,A-Pawulski,R POL-ch U08 Poland 2022 (8)}) 10. a4 {[%emt 0:00:20]} a5 {[%emt 0:00:02]} 11. Re1 {[%emt 0:00:01]} f6 {[%emt 0:00:01]} 12. Nf1 {[%emt 0:00:02]} Bf5 {[%emt 0:00:19]} 13. Nh4 {[%emt 0:00:01]} Bd7 {[%emt 0:00:03]} 14. c3 {[%emt 0:00:16]} f5 {[%emt 0:01:02]} (14... g5 $5 15. Nf3 $8 Be8 $14) 15. Nf3 {[%emt 0:00:02]} Bf6 {[%emt 0:00:10]} 16. Ng3 {[%emt 0:00:02]} Qe8 {[%emt 0:00:09]} (16... f4 $11 {keeps the balance.} 17. Ne4 Be8) 17. Bf4 $1 $16 {[%emt 0:00:54]} Qg6 {[%emt 0:01:12]} 18. Bxe5 {[%emt 0:00:23]} (18. Nxe5 $6 Bxe5 19. Bxe5 f4 20. Bxc7 fxg3 21. fxg3 (21. Bxb6 Nb4 $17) 21... Nb8 $11) 18... Nxe5 {[%emt 0:00:49]} 19. Nxe5 {[%emt 0:00:24]} Bxe5 {[%emt 0:00:01]} 20. Rxe5 {[%emt 0:00:01]} f4 {[%emt 0:00:02]} 21. Ne4 {[%emt 0:00:01]} f3 {[%emt 0:00:59]} 22. Rg5 {[%emt 0:00:09]} (22. g4 $16) 22... Qh6 $14 {[%emt 0:00:15]} 23. Rg3 {[%emt 0:01:17]} fxg2 {[%emt 0:00:06]} 24. Ng5 {[%emt 0:00:13]} Bc6 $2 {[%emt 0:00:39]} (24... Qf6 $11 25. Qf3 (25. Rxg2 h6 $15) 25... Qxf3 26. Rxf3 (26. Nxf3 Rae8 $11) 26... Rxf3 27. Nxf3 Re8) 25. Qg4 $2 {[%emt 0:01:24]} (25. Nf7+ $18 Rxf7 26. Bxf7) 25... Nd5 {[%emt 0:01:00]} 26. Re1 {[%emt 0:00:02]} (26. Kxg2 $2 Ne3+ (26... Nxc3+ 27. Kf1 $11) 27. Kg1 Nxg4 $19) 26... Nf4 {[%emt 0:00:26]} (26... Qf6 $14 27. Ne4 Qe5) 27. Re7 $1 $16 {[%emt 0:01:48]} (27. Nf7+ Rxf7 28. Bxf7 Qf6 $15) 27... Rae8 $2 {[%emt 0:01:35]} (27... Qg6 $16 {was worth a try.}) 28. Rxe8 $1 $18 {[%emt 0:00:02]} ({Wrong is} 28. Nf7+ $2 Rxf7 29. Rxe8+ (29. Bxf7 $2 Nxh3+ 30. Kh2 Nf4+ 31. Rh3 Qxh3+ 32. Qxh3 g1=Q+ 33. Kxg1 Nxh3+ $19) 29... Bxe8 $19) 28... Bxe8 {[%emt 0:00:01] [#]} 29. Rf3 $1 {[%emt 0:00:03]} Qf6 {[%emt 0:00:47] [#]} 30. Nf7+ $1 {[%emt 0:00:02]} Bxf7 {[%emt 0:00:36]} 31. Rxf4 {[%emt 0:00:04]} Bxb3 {[%emt 0:00:08]} (31... Qe7 {keeps fighting.}) 32. Rxf6 $18 {[%emt 0:00:02]} gxf6 {[%emt 0:00:01]} 33. Qd4 {[%emt 0:00:12]} (33. Kxg2 $2 {perishes.} Rg8 34. f3 Bxa4 $19 (34... Rxg4+ $2 35. fxg4 Bxa4 36. h4 $19)) 33... Rg8 $2 {[%emt 0:00:08]} (33... Rf7 34. Kxg2 b6) 34. Qxf6+ $18 {[%emt 0:00:02]} Rg7 {[%emt 0:00:01]} 35. Qd8+ {[%emt 0:00:06]} Bg8 {[%emt 0:00:01]} 36. Qf6 $2 {[%emt 0:00:25]} ({Better is} 36. f4 $18) 36... h5 $2 {[%emt 0:00:03][%mdl 8192]} (36... Bb3 $11 37. Qd8+ Bg8) 37. Qh6+ $18 {[%emt 0:00:04]} Bh7 {[%emt 0:00:01]} 38. Qxh5 {[%emt 0:00:03]} Rg6 {[%emt 0:00:05]} 39. Qxa5 {[%emt 0:00:03]} Kg7 {[%emt 0:00:02]} 40. Qxc7+ {[%emt 0:00:02]} Kh6 {[%emt 0:00:00]} 41. Qxb7 {[%emt 0:00:03]} Rg5 {[%emt 0:00:04]} 42. Qf3 {[%emt 0:00:05]} Bg8 1-0

[Event "CCT Final-RR 2024"]
[Site "Oslo"]
[Date "2024.12.19"]
[Round "7"]
[White "Aronian, Levon"]
[Black "Nepomniachtchi, Ian"]
[Result "1/2-1/2"]
[ECO "C24"]
[WhiteElo "2747"]
[BlackElo "2755"]
[Annotator "TA"]
[PlyCount "125"]
[EventDate "2024.12.11"]
[EventType "tourn"]
[EventCountry "NOR"]
[SourceTitle "playchess.com"]
[Source "ChessBase"]
[SourceQuality "1"]
[TimeControl "600+2"]

{[%evp 51,125,34,28,0,40,25,34,0,0,0,0,1,4,0,0,0,0,0,0,0,0,0,0,0,0,0,0,0,33,-7,0,0,0,0,8,8,79,72,126,169,172,8,42,70,74,83,796,766,645,606,571,545,564,558,435,925,964,896,1252,1273,1223,0,0,0,0,0,0,0,0,0,0,0,0,0,0,0]} 1. e4 {[%emt 0:00:01]} e5 {[%emt 0:00:01]} 2. Bc4 {[%emt 0:00:01]} Nf6 {[%emt 0:00:02]} 3. d3 {[%emt 0:00:01]} c6 {[%emt 0:00:03]} 4. Nf3 {[%emt 0:00:01]} d5 {[%emt 0:00:00]} 5. Bb3 {[%emt 0:00:02]} a5 {[%emt 0:00:02]} 6. a4 {[%emt 0:00:01]} Bb4+ {[%emt 0:00:03]} 7. c3 {[%emt 0:00:02]} Bd6 {[%emt 0:00:01]} 8. exd5 {[%emt 0:00:01]} cxd5 {[%emt 0:00:02]} 9. Bg5 {[%emt 0:00:03]} Be6 {[%emt 0:00:05]} 10. Na3 {[%emt 0:00:01]} Nbd7 {[%emt 0:00:06]} 11. Nb5 {[%emt 0:00:01]} Bb8 {[%emt 0:00:01]} 12. d4 {[%emt 0:00:20]} e4 {[%emt 0:00:05]} 13. Nd2 {[%emt 0:00:01]} h6 {[%emt 0:00:11]} 14. Bh4 {[%emt 0:00:02]} Nf8 {[%emt 0:00:26]} 15. f3 {[%emt 0:01:20]} Ng6 {[%emt 0:00:13]} 16. Bxf6 {[%emt 0:00:03]} Qxf6 {[%emt 0:00:02]} 17. g3 {[%emt 0:00:01]} exf3 {[%emt 0:02:15]} 18. Qxf3 {[%emt 0:00:21]} Qxf3 {[%emt 0:00:29]} 19. Nxf3 {[%emt 0:00:01]} Kd7 {[%emt 0:00:08]} 20. O-O {[%emt 0:00:37]} Bd6 {[%emt 0:00:07]} 21. Rf2 {[%emt 0:02:05]} Rae8 {[%emt 0:00:07]} 22. Bc2 {[%emt 0:00:25]} Ne7 {[%emt 0:00:05]} 23. Nh4 {[%emt 0:00:01]} Bb8 {[%emt 0:00:18]} 24. Raf1 {[%emt 0:00:13]} Ref8 {[%emt 0:00:24]} 25. Kg2 {[%emt 0:00:30]} h5 {[%emt 0:00:03]} 26. Nf3 {[%emt 0:00:50]} (26. Bg6 $5) 26... f6 {[%emt 0:00:13]} 27. Nh4 {[%emt 0:00:01]} Re8 {[%emt 0:00:12]} 28. Re1 {[%emt 0:00:29]} Bf7 {[%emt 0:00:24]} 29. Rfe2 {[%emt 0:00:01]} (29. Bd3 Ng8 30. Rxe8 Bxe8 31. Nf5) 29... g5 {[%emt 0:01:15]} 30. Nf5 {[%emt 0:00:08]} Nxf5 {[%emt 0:00:01]} 31. Bxf5+ {[%emt 0:00:01]} Kd8 {[%emt 0:00:01]} 32. Be6 {[%emt 0:00:09]} (32. Na3 {simplifies} Rxe2+ 33. Rxe2 Re8 34. Rf2) 32... Bxe6 {[%emt 0:00:01]} 33. Rxe6 {[%emt 0:00:01]} Kd7 {[%emt 0:00:01]} 34. Rxe8 {[%emt 0:00:15]} Rxe8 {[%emt 0:00:01]} 35. Rxe8 {[%emt 0:00:00]} Kxe8 {[%emt 0:00:00]} 36. b3 {[%emt 0:00:00]} Kd7 {[%emt 0:00:13]} 37. c4 {[%emt 0:00:02]} Ke6 {[%emt 0:00:05]} 38. Nc3 {[%emt 0:00:06]} dxc4 {[%emt 0:00:09]} 39. bxc4 {[%emt 0:00:01]} f5 {[%emt 0:00:02]} 40. c5 {[%emt 0:00:19]} Bc7 {[%emt 0:00:15]} 41. Kf3 {[%emt 0:00:33]} Bd8 {[%emt 0:00:22]} 42. Ke3 {[%emt 0:00:22]} Bf6 {[%emt 0:00:03]} 43. Kd3 {[%emt 0:00:14]} Bg7 {[%emt 0:00:21]} (43... Bd8 $11) 44. Nb5 $1 $16 {[%emt 0:00:25]} h4 {[%emt 0:00:22]} ({Black should try} 44... Bh8) 45. gxh4 $16 {[%emt 0:00:35]} gxh4 {[%emt 0:00:01]} 46. h3 $2 {[%emt 0:00:02]} (46. Kc4 $18) 46... Bf8 {[%emt 0:00:15]} 47. Nc7+ {[%emt 0:00:04]} Kd7 {[%emt 0:00:13]} 48. Nd5 $1 {[%emt 0:00:01]} Ke6 $2 {[%emt 0:00:18][%mdl 8192]} (48... Bh6 $16) 49. Nf4+ $18 {[%emt 0:00:04]} Kf6 {[%emt 0:00:04]} 50. Ng2 {[%emt 0:00:28]} Kg5 {[%emt 0:00:02]} 51. Kc4 {[%emt 0:00:00]} f4 {[%emt 0:00:04]} 52. Ne1 {[%emt 0:00:01]} Kf5 {[%emt 0:00:01] [#]} 53. Kd3 $1 {[%emt 0:00:09]} ({Stronger than} 53. Kd5 Be7 $11) 53... Be7 {[%emt 0:00:04]} 54. Nf3 {[%emt 0:00:00]} Bd8 {[%emt 0:00:07]} 55. d5 {[%emt 0:00:01]} Bf6 {[%emt 0:00:01] [#]} 56. c6 $2 {[%emt 0:00:06]} (56. Kc4 $1 $18 Bd8 57. c6 bxc6 58. dxc6) 56... bxc6 $11 {[%emt 0:00:02]} 57. dxc6 {[%emt 0:00:00]} Ke6 $1 {[%emt 0:00:04]} 58. Kc4 {[%emt 0:00:07]} (58. c7 $5 Kd7 $8 59. Nd2 $11) 58... Kd6 {[%emt 0:00:01]} 59. Kb5 {[%emt 0:00:00]} Bd8 {[%emt 0:00:02]} 60. Nd2 {[%emt 0:00:08]} Kd5 {[%emt 0:00:03]} 61. Nf3 {[%emt 0:00:00]} Kd6 $1 {[%emt 0:00:01]} 62. Ne1 {[%emt 0:00:04]} Kd5 {[%emt 0:00:02]} 63. Nf3 {[%emt 0:00:03]} 1/2-1/2

[Event "CCT Final-RR 2024"]
[Site "Oslo"]
[Date "2024.12.19"]
[Round "7"]
[White "So, Wesley"]
[Black "Vachier-Lagrave, Maxime"]
[Result "1-0"]
[ECO "D80"]
[WhiteElo "2747"]
[BlackElo "2731"]
[Annotator "TA"]
[PlyCount "103"]
[EventDate "2024.12.11"]
[EventType "tourn"]
[EventCountry "NOR"]
[SourceTitle "playchess.com"]
[Source "ChessBase"]
[SourceQuality "1"]
[TimeControl "600+2"]

{[%evp 38,103,0,0,0,0,0,-63,65,71,75,39,175,190,213,224,214,203,326,318,456,450,552,406,350,281,544,539,543,538,506,511,718,718,705,692,727,660,527,508,735,726,752,752,735,719,705,705,695,687,652,634,4885,4301,29952,29955,29950,29953,29947,29950,29948,29951,29963,29964,29971,29971,6215,6087]} 1. d4 {[%emt 0:00:01]} Nf6 {[%emt 0:00:01]} 2. c4 {[%emt 0:00:02]} g6 {[%emt 0:00:01]} 3. Nc3 {[%emt 0:00:02]} d5 {[%emt 0:00:01]} 4. Bg5 {[%emt 0:00:09]} Ne4 {[%emt 0:00:07]} 5. Bh4 {[%emt 0:00:06]} Nxc3 {[%emt 0:00:16]} 6. bxc3 {[%emt 0:00:01]} dxc4 {[%emt 0:00:01]} 7. e3 {[%emt 0:00:02]} Be6 {[%emt 0:00:02]} 8. Nf3 {[%emt 0:00:12]} Nd7 {[%emt 0:00:14]} 9. Be2 {[%emt 0:02:06]} Nb6 {[%emt 0:00:10]} 10. a4 {[%emt 0:00:18]} a5 {[%emt 0:00:01]} 11. O-O {[%emt 0:00:15]} Bg7 {[%emt 0:00:01]} 12. Qc2 {[%emt 0:00:26]} O-O {[%emt 0:00:06]} 13. Rfb1 {[%emt 0:00:03]} Qd7 {[%emt 0:01:17]} 14. Bg3 {[%emt 0:00:51]} Bd5 {[%emt 0:00:23]} 15. e4 {[%emt 0:01:29]} Bc6 {[%emt 0:00:02]} 16. Rxb6 {[%emt 0:00:02]} cxb6 {[%emt 0:00:00]} 17. d5 {[%emt 0:00:02]} Bxa4 {[%emt 0:00:02]} 18. Rxa4 {[%emt 0:00:01]} b5 {[%emt 0:00:01]} 19. Ra2 {[%emt 0:00:18]} b4 {[%emt 0:01:49]} 20. cxb4 {[%emt 0:00:23]} (20. Bxc4 b5 21. Be2 Bxc3 $17 (21... bxc3 22. Bd1 $17)) 20... axb4 {[%emt 0:00:01]} 21. Bxc4 {[%emt 0:00:01]} Ra3 {[%emt 0:01:00]} 22. Ne5 {[%emt 0:01:07]} (22. Rxa3 $1 $11 bxa3 23. h3) 22... Qc8 {[%emt 0:00:01]} (22... Bxe5 $1 $15 23. Rxa3 (23. Bxe5 Rc8 $15) 23... bxa3 24. Bxe5 Rc8) 23. Rxa3 $1 $14 {[%emt 0:00:54]} (23. d6 $2 b3 (23... Rc3 $2 24. d7 $19) 24. Bxf7+ (24. Rxa3 $2 bxc2 25. Rc3 exd6 $19) 24... Kh8 25. Qxc8 (25. Rxa3 $2 bxc2 26. h3 c1=Q+ $19) 25... Rxc8 $19 (25... bxa2 26. Nxg6+ hxg6 27. Qh3+)) 23... bxa3 {[%emt 0:00:03] [#]} 24. Qa2 $1 {[%emt 0:00:01]} ({Wrong is} 24. d6 $2 Bxe5 25. Bxe5 (25. dxe7 $2 {is the wrong capture.} Re8 $19) 25... b5 26. dxe7 Re8 $17 (26... bxc4 $2 27. exf8=Q+ Kxf8 28. Bd6+ Kg8 29. Bxa3 $18)) 24... Qc5 {[%emt 0:02:56]} ({Black should try} 24... Bxe5 $14 25. Bxe5 Qc5) 25. Nd7 $18 {[%emt 0:00:24]} Qb4 {[%emt 0:00:01]} 26. Nxf8 {[%emt 0:00:31]} b5 {[%emt 0:00:01] [#]} 27. Bd3 $1 {[%emt 0:00:27]} Bxf8 {[%emt 0:00:21]} (27... Kxf8 $142 28. h4 Bd4) 28. h4 $18 {[%emt 0:00:06]} Qe1+ {[%emt 0:00:05]} (28... Kg7 $142 29. Qb1 Qd2 30. Bxb5 (30. Qxb5 a2 $16) (30. Qa1+ e5 $18) 30... Qc3) 29. Kh2 $18 {[%emt 0:00:06]} b4 {[%emt 0:00:01]} 30. Bc4 {[%emt 0:00:03]} Qxe4 {[%emt 0:00:03]} 31. Bb3 {[%emt 0:00:13]} Qd3 $2 {[%emt 0:00:12]} (31... Qf5 32. Qe2 Qf6) 32. d6 $18 {[%emt 0:00:04]} e6 {[%emt 0:00:13]} 33. Bxe6 {[%emt 0:00:01]} Bxd6 {[%emt 0:00:11]} 34. Bxf7+ {[%emt 0:00:02]} Kg7 {[%emt 0:00:08]} 35. Bxd6 {[%emt 0:00:05]} Qxd6+ {[%emt 0:00:02]} 36. g3 {[%emt 0:00:01]} Qf6 {[%emt 0:00:09]} 37. Bd5 {[%emt 0:00:04]} Qd4 {[%emt 0:00:04]} 38. Kg2 {[%emt 0:00:02]} h6 {[%emt 0:00:02]} 39. Bb3 {[%emt 0:00:05]} Qe4+ {[%emt 0:00:01]} 40. Kh2 {[%emt 0:00:01]} Qf3 {[%emt 0:00:03]} 41. Kg1 {[%emt 0:00:03]} Qc3 {[%emt 0:00:05]} 42. Qb1 {[%emt 0:00:01]} Kf6 {[%emt 0:00:07]} 43. Qd1 {[%emt 0:00:02]} Ke7 {[%emt 0:00:21]} 44. Qd5 {[%emt 0:00:02]} h5 {[%emt 0:00:16]} 45. Kg2 {[%emt 0:00:02]} Ke8 {[%emt 0:00:05]} 46. Qe6+ {[%emt 0:00:06]} Kd8 {[%emt 0:00:01]} 47. Qd6+ {[%emt 0:00:00]} Kc8 {[%emt 0:00:00]} 48. Be6+ {[%emt 0:00:04]} Kb7 {[%emt 0:00:01]} 49. Bd5+ {[%emt 0:00:01]} Ka7 {[%emt 0:00:02]} 50. Qxg6 {[%emt 0:00:02]} Qc5 {[%emt 0:00:07]} 51. Qxh5 {[%emt 0:00:06]} Kb6 {[%emt 0:00:07]} 52. Qf7 {[%emt 0:00:01]} 1-0

[Event "CCT Final-RR 2024"]
[Site "Oslo"]
[Date "2024.12.19"]
[Round "7"]
[White "Keymer, Vincent"]
[Black "Firouzja, Alireza"]
[Result "0-1"]
[ECO "A62"]
[WhiteElo "2733"]
[BlackElo "2763"]
[Annotator "TA"]
[PlyCount "162"]
[EventDate "2024.12.11"]
[EventType "tourn"]
[EventCountry "NOR"]
[SourceTitle "playchess.com"]
[Source "ChessBase"]
[SourceQuality "1"]
[TimeControl "600+2"]

{[%evp 95,162,-206,-124,-180,-193,-193,-178,-362,-353,-1152,-228,-295,-319,-315,-311,-293,-162,-217,-228,-233,8,8,8,8,8,8,22,0,0,-964,-964,-804,-789,-1965,-1735,-29960,-29961,-29966,-29966,-29968,-29968,-29966,-29966,-29962,-29964,-29970,-29971,-29971,-29972,-29972,-29973,-29972,-29972,-29974,-29975,-29975,-29976,-29976,-29977,-29979,-29980,-29980,-29981,-29981,-29982,-29982,-29983,-29983,-29984]} 1. Nf3 {[%emt 0:00:02]} Nf6 {[%emt 0:00:05]} 2. g3 {[%emt 0:00:04]} g6 {[%emt 0:00:30]} 3. Bg2 {[%emt 0:00:03]} Bg7 {[%emt 0:00:01]} 4. c4 {[%emt 0:00:01]} O-O {[%emt 0:00:07]} 5. Nc3 {[%emt 0:00:11]} d6 {[%emt 0:00:04]} 6. d4 {[%emt 0:00:03]} c5 {[%emt 0:00:05]} 7. d5 {[%emt 0:00:13]} e6 {[%emt 0:00:11]} 8. O-O {[%emt 0:00:02]} exd5 {[%emt 0:00:01]} 9. cxd5 {[%emt 0:00:01]} Re8 {[%emt 0:00:07]} 10. Re1 {[%emt 0:00:00]} Na6 {[%emt 0:00:37]} 11. h3 {[%emt 0:00:23]} Nc7 {[%emt 0:00:10]} 12. e4 {[%emt 0:00:12]} Nd7 {[%emt 0:02:29]} 13. Bf4 {[%emt 0:00:01]} Ne5 {[%emt 0:00:51]} 14. Nxe5 {[%emt 0:00:02]} Bxe5 {[%emt 0:00:12]} 15. Bxe5 {[%emt 0:00:03]} dxe5 {[%emt 0:00:03]} 16. d6 {[%emt 0:01:50]} Ne6 {[%emt 0:00:04]} 17. Nd5 {[%emt 0:00:02]} Kg7 {[%emt 0:00:51]} 18. b4 {[%emt 0:00:37]} b6 {[%emt 0:00:37]} 19. bxc5 {[%emt 0:00:11]} bxc5 {[%emt 0:00:01]} 20. f4 {[%emt 0:00:41]} Rb8 {[%emt 0:01:02]} 21. fxe5 {[%emt 0:01:27]} Qg5 {[%emt 0:00:01]} 22. Qf3 {[%emt 0:00:05]} Qxe5 {[%emt 0:00:08]} 23. Rf1 {[%emt 0:00:02]} Rf8 {[%emt 0:00:59]} 24. Qf6+ {[%emt 0:00:03]} Qxf6 {[%emt 0:00:02]} 25. Nxf6 {[%emt 0:00:01]} Rd8 {[%emt 0:00:14]} 26. e5 {[%emt 0:00:04]} Nd4 {[%emt 0:00:01]} 27. Ne4 {[%emt 0:00:35]} Bf5 {[%emt 0:00:39]} 28. Nxc5 {[%emt 0:01:06]} Rb5 {[%emt 0:00:01]} 29. Nb7 {[%emt 0:00:00]} Rd7 {[%emt 0:00:10]} 30. Rfd1 {[%emt 0:00:26]} Ne2+ {[%emt 0:00:07]} 31. Kf2 {[%emt 0:00:03]} Nc3 {[%emt 0:00:18]} 32. Rd4 {[%emt 0:00:56]} Rb2+ {[%emt 0:00:06]} 33. Kf1 {[%emt 0:00:03]} Rbxb7 {[%emt 0:00:07]} 34. Bxb7 {[%emt 0:00:03]} Rxb7 {[%emt 0:00:00]} 35. g4 {[%emt 0:00:13]} Be6 {[%emt 0:00:01]} 36. Rc1 {[%emt 0:00:01]} Nd5 {[%emt 0:00:03]} 37. a4 {[%emt 0:00:30]} Nb6 {[%emt 0:00:05]} 38. Rc7 {[%emt 0:00:10]} Rb8 {[%emt 0:00:02]} 39. Rb4 {[%emt 0:00:31]} Ra8 {[%emt 0:00:04]} 40. Rd4 {[%emt 0:00:16]} Nd7 {[%emt 0:00:01]} 41. Re4 {[%emt 0:00:02]} a5 {[%emt 0:00:01]} 42. Kf2 {[%emt 0:00:03]} g5 {[%emt 0:00:02]} 43. Re3 {[%emt 0:00:02]} Rb8 {[%emt 0:00:01]} 44. Ra7 {[%emt 0:00:01]} Rb2+ {[%emt 0:00:04]} 45. Ke1 {[%emt 0:00:01]} Rb1+ {[%emt 0:00:03]} 46. Kd2 {[%emt 0:00:00]} Nb6 {[%emt 0:00:03]} 47. Kc2 {[%emt 0:00:01]} Ra1 {[%emt 0:00:00]} 48. Ra6 $2 {[%emt 0:00:03]} ({White should play} 48. Rb3 $15 Nd7 (48... Bxb3+ 49. Kxb3 Rd1 50. Rxa5 $11) (48... Nxa4 49. Rb5 $11) 49. Rbb7 Nxe5 (49... Rxa4 $2 50. Rxd7 Rc4+ 51. Kd2 $18) 50. Rxa5 Ra2+ 51. Kc1 (51. Rb2 $2 Rxb2+ 52. Kxb2 Nc4+ $19)) 48... Nc4 {[%emt 0:00:01]} 49. Re4 {[%emt 0:00:04]} (49. Rd3 $17 Nxe5 (49... Rxa4 50. d7 $11) 50. Re3) 49... Ra2+ $19 {[%emt 0:00:02]} 50. Kc3 {[%emt 0:00:01]} Ra3+ {[%emt 0:00:01]} 51. Kd4 $2 {[%emt 0:00:02]} (51. Kc2 Ra2+ (51... Rxh3 52. Rxc4 Bxc4 53. d7 $14) (51... Rxa4 $2 52. Rc6 $19) 52. Kc1 Rxa4 53. Rc6) 51... Nd2 $19 {[%emt 0:00:01]} (51... Rxh3 52. d7 Bxd7 53. Kxc4 $11) (51... Rxa4 52. Kc5 $11) 52. Re2 $2 {[%emt 0:00:04]} (52. Re3 Nb3+ (52... Rxa4+ $2 53. Kc3 $19) 53. Rxb3 Rxb3 54. Rxa5) 52... Rxa4+ $2 {[%emt 0:00:04]} (52... Nb3+ 53. Kc3 Nc5+ (53... Rxa4 $2 54. Rc6 $19) 54. Kb2 Rb3+ (54... Rxh3 $2 55. Rxa5 Nd3+ 56. Kc2 $19) (54... Rxa4 $2 55. Rc6 $19) 55. Kc2 Nxa6) 53. Kc5 {[%emt 0:00:01]} Nb3+ {[%emt 0:00:02]} 54. Kb6 {[%emt 0:00:01]} Rb4+ {[%emt 0:00:02]} 55. Kc7 {[%emt 0:00:03]} Nd4 {[%emt 0:00:02]} (55... Rc4+ $142 56. Kb6 Bd7) 56. Rd2 {[%emt 0:00:02]} (56. d7 $2 Rc4+ (56... Nxe2 $2 57. d8=Q $18) (56... Bxd7 $2 57. Ra2 $19) 57. Kb6 Bxd7 $19 (57... Nxe2 $2 58. d8=Q $18)) (56. Re3 {was worth a try.}) 56... Rc4+ $19 {[%emt 0:00:04]} 57. Kb6 {[%emt 0:00:01]} Nf3 $2 {[%emt 0:00:03]} ({Black should play} 57... Bd7 $19 58. Rb2 Ne6 59. Rxa5 Rc3) 58. d7 $11 {[%emt 0:00:02]} Bxd7 $1 {[%emt 0:00:00]} 59. Rxd7 {[%emt 0:00:02]} Nxe5 {[%emt 0:00:02]} 60. Rd5 {[%emt 0:00:03]} Re4 {[%emt 0:00:01]} 61. Kxa5 {[%emt 0:00:01]} (61. Rdxa5 Nc4+ 62. Kc7 Nxa5 63. Rxa5 f6 $19) 61... h6 {[%emt 0:00:02]} 62. Ra7 $2 {[%emt 0:00:03][%mdl 8192]} (62. Kb6 $11) 62... Nc6+ $19 {[%emt 0:00:03]} 63. Kb6 {[%emt 0:00:02]} Nxa7 {[%emt 0:00:01]} 64. Kxa7 {[%emt 0:00:01]} Re3 {[%emt 0:00:00]} 65. h4 {[%emt 0:00:04]} gxh4 {[%emt 0:00:02]} 66. Rh5 {[%emt 0:00:00]} h3 {[%emt 0:00:02]} 67. Kb6 {[%emt 0:00:01]} f6 {[%emt 0:00:04]} 68. Kc6 {[%emt 0:00:04]} Kg6 {[%emt 0:00:01]} 69. Kd6 {[%emt 0:00:00]} Rg3 {[%emt 0:00:04]} 70. Kd5 {[%emt 0:00:01]} Rxg4 {[%emt 0:00:02]} 71. Rxh3 {[%emt 0:00:01]} h5 {[%emt 0:00:01]} 72. Ra3 {[%emt 0:00:04]} h4 {[%emt 0:00:02]} 73. Ra8 {[%emt 0:00:01]} Kf5 {[%emt 0:00:02]} 74. Rh8 {[%emt 0:00:02]} Kf4 {[%emt 0:00:01]} 75. Ke6 {[%emt 0:00:01]} f5 {[%emt 0:00:04]} 76. Rh5 {[%emt 0:00:01]} Kg3 {[%emt 0:00:02]} 77. Rxf5 {[%emt 0:00:06]} h3 {[%emt 0:00:01]} 78. Ra5 {[%emt 0:00:05]} h2 {[%emt 0:00:02]} 79. Ra3+ {[%emt 0:00:01]} Kh4 {[%emt 0:00:02]} 80. Ra8 {[%emt 0:00:02]} Rg1 {[%emt 0:00:01]} ({Inferior is} 80... h1=B 81. Rh8+ Kg3 82. Rxh1 $11) 81. Rh8+ {[%emt 0:00:02]} Kg3 {[%emt 0:00:01]} 0-1

[Event "CCT Final-RR 2024"]
[Site "Oslo"]
[Date "2024.12.19"]
[Round "7"]
[White "Vachier-Lagrave, Maxime"]
[Black "So, Wesley"]
[Result "1/2-1/2"]
[ECO "C84"]
[WhiteElo "2731"]
[BlackElo "2747"]
[Annotator "TA"]
[PlyCount "72"]
[EventDate "2024.12.11"]
[EventType "tourn"]
[EventCountry "NOR"]
[SourceTitle "playchess.com"]
[Source "ChessBase"]
[SourceQuality "1"]
[TimeControl "600+2"]

{[%evp 17,72,31,37,41,39,-9,0,0,9,-7,-3,-3,0,-9,0,0,0,0,0,0,11,0,0,0,26,21,19,14,16,10,10,10,13,14,14,14,17,11,9,0,0,0,0,0,0,0,0,0,0,0,0,0,0,0,0,0,0]} 1. e4 {[%emt 0:00:02]} e5 {[%emt 0:00:02]} 2. Nf3 {[%emt 0:00:01]} Nc6 {[%emt 0:00:01]} 3. Bb5 {[%emt 0:00:01]} Nf6 {[%emt 0:00:01]} 4. d3 {[%emt 0:00:01]} d6 {[%emt 0:00:04]} 5. O-O {[%emt 0:00:08]} Be7 {[%emt 0:00:02]} 6. c3 {[%emt 0:00:02]} O-O {[%emt 0:00:04]} 7. Re1 {[%emt 0:00:03]} a6 {[%emt 0:00:07]} 8. Ba4 {[%emt 0:00:05]} b5 {[%emt 0:00:02]} 9. Bc2 {[%emt 0:00:06]} d5 {[%emt 0:00:45]} 10. Nbd2 {[%emt 0:00:21]} dxe4 {[%emt 0:00:40]} 11. Nxe4 {[%emt 0:00:19]} (11. dxe4 $14 {is more appropriate.} Be6 12. a4) 11... Nxe4 $11 {[%emt 0:00:12]} 12. dxe4 {[%emt 0:00:01]} Be6 {[%emt 0:00:18]} 13. Be3 {[%emt 0:00:25]} Qxd1 {[%emt 0:00:17]} 14. Rexd1 {[%emt 0:00:46]} f6 {[%emt 0:00:19]} 15. Ne1 {[%emt 0:00:51]} Na5 {[%emt 0:01:02]} 16. Nd3 {[%emt 0:00:02]} Rfd8 {[%emt 0:00:24]} 17. Nc5 {[%emt 0:00:41]} Bxc5 {[%emt 0:00:12]} 18. Bxc5 {[%emt 0:00:03]} Kf7 {[%emt 0:00:04]} 19. Kf1 {[%emt 0:00:38]} Nb7 {[%emt 0:01:09]} 20. Be3 {[%emt 0:00:05]} Na5 {[%emt 0:00:19]} 21. Rxd8 {[%emt 0:00:15]} Rxd8 {[%emt 0:00:01] The position is equal.} 22. b3 {[%emt 0:00:01]} g5 {[%emt 0:00:20]} 23. Ke2 {[%emt 0:00:25]} h5 {[%emt 0:00:04]} 24. f3 {[%emt 0:00:15]} h4 {[%emt 0:00:03]} 25. Kf2 {[%emt 0:00:24]} c5 {[%emt 0:00:11]} 26. Ke2 {[%emt 0:00:16]} Nb7 {[%emt 0:00:10]} 27. a4 {[%emt 0:01:35]} b4 {[%emt 0:00:02]} 28. cxb4 {[%emt 0:00:01]} cxb4 {[%emt 0:00:01]} 29. a5 {[%emt 0:00:01]} Rc8 {[%emt 0:00:52]} 30. Bd3 {[%emt 0:00:08]} Rc6 {[%emt 0:00:16]} ({Much weaker is} 30... Bxb3 $6 31. Bxa6 Rc2+ 32. Bd2 $16) 31. Ra4 {[%emt 0:00:57]} Bxb3 {[%emt 0:00:30]} 32. Rxb4 {[%emt 0:00:01]} Nxa5 {[%emt 0:00:01]} 33. Bb6 {[%emt 0:00:50]} Nc4 {[%emt 0:00:02]} 34. Bf2 {[%emt 0:00:06]} Ba2 {[%emt 0:00:32]} 35. Ra4 {[%emt 0:00:01]} Bb3 {[%emt 0:00:01]} 36. Rb4 {[%emt 0:00:01]} Ba2 {[%emt 0:00:01] Weighted Error Value: White=0.02 (flawless) /Black=0.02 (flawless) .  Mistake:       	White=1     	---        Inaccurate:     	---       	Black=1      OK:         	White=16    	Black=19} 1/2-1/2